bitfinex/quotes_SOLUSD_20241209
["timestamp","ask_amount","ask_price","bid_price","bid_amount"]
[1733733638298,20.0,229.45,229.33,24.25514313]
[1733733638813,20.0,229.45,229.33,0.47825913]
[1733733639170,20.0,229.45,229.34,0.47832453]
[1733733639801,20.0,229.45,229.34,56.900825]
[1733733640002,20.0,229.45,229.34,24.25520853]
[1733733640211,20.0,229.45,229.34,0.47832453]
[1733733640706,20.0,229.45,229.35,23.776884]
[1733733641012,20.0,229.45,229.36,0.47808455]
[1733733641325,0.5199605,229.49,229.36,0.47808455]
[1733733641798,0.5199605,229.49,229.38,23.776884]
[1733733641996,0.5199605,229.49,229.39,0.47787305]
[1733733643629,0.5199605,229.49,229.34,0.47821569]
[1733733644700,0.5199605,229.49,229.34,24.25509969]
[1733733646446,0.5199605,229.49,229.36,56.42250047]
[1733733646726,0.5199605,229.49,229.37,0.47782242]
[1733733650411,0.5199605,229.49,229.41,32.64561647]
[1733733650605,0.5199605,229.49,229.38,23.776884]
[1733733650606,0.5199605,229.49,229.43,23.776884]
[1733733650809,0.5199605,229.49,229.44,24.25431788]
[1733733651736,0.5199605,229.49,229.46,23.776884]
[1733733651921,0.5199605,229.49,229.47,0.47721845]
[1733733652129,0.5199605,229.49,229.48,56.42250047]
[1733733652318,0.5199605,229.49,229.48,23.776884]
[1733733653313,0.5199605,229.49,229.48,56.42250047]
[1733733653623,0.5199605,229.49,229.47,0.47721845]
[1733733653822,0.5199605,229.49,229.48,0.47750228]
[1733733654435,0.5199605,229.49,229.41,0.47768393]
[1733733654811,0.5199605,229.49,229.34,6.0878]
[1733733654812,0.5199605,229.49,229.35,0.47800759]
[1733733655043,0.5199605,229.49,229.36,32.64561647]
[1733733655339,0.5199605,229.49,229.35,0.47800759]
[1733733655340,0.5199605,229.49,229.37,0.47794551]
[1733733656806,0.5199605,229.49,229.32,0.47821681]
[1733733658273,0.5199605,229.49,229.32,24.25510081]
[1733733658472,0.5199605,229.49,229.32,44.34401521]
[1733733658960,20.0,229.46,229.32,0.47821681]
[1733733659168,20.0,229.46,229.33,0.47843403]
[1733733659530,20.81719365,229.46,229.33,0.47843403]
[1733733659747,20.0,229.46,229.33,0.47843403]
[1733733660035,0.81723127,229.45,229.34,0.47848395]
[1733733660234,0.81723127,229.45,229.3,0.47856007]
[1733733660235,20.0,229.41,229.3,0.47856007]
[1733733660550,0.817412,229.4,229.24,0.47884541]
[1733733660876,20.0,229.41,229.24,0.47884541]
[1733733661027,20.0,229.41,229.25,20.0889144]
[1733733661365,20.0,229.41,229.28,20.0889144]
[1733733661661,20.0,229.41,229.29,0.4784666]
[1733733662570,0.81735114,229.4,229.29,0.4784666]
[1733733662871,20.0,229.41,229.25,20.0889144]
[1733733663162,20.0,229.41,229.26,0.47874508]
[1733733663574,20.8173737,229.4,229.33,1.25]
[1733733664730,20.0,229.4,229.33,1.25]
[1733733664960,20.0,229.41,229.33,1.25]
[1733733665141,0.81744619,229.4,229.33,1.25]
[1733733666375,20.81744619,229.4,229.33,1.25]
[1733733666945,20.0,229.36,229.33,1.25]
[1733733667689,20.0,229.41,229.33,1.25]
[1733733668391,8.03228172,229.44,229.33,1.25]
[1733733668392,6.3011,229.44,229.34,0.47867372]
[1733733670092,20.0,229.41,229.34,0.47867372]
[1733733670656,6.3011,229.44,229.34,0.47867372]
[1733733672086,20.0,229.41,229.34,0.47867372]
[1733733673472,1.7112,229.47,229.35,20.0889144]
[1733733673781,1.7112,229.47,229.36,0.47799068]
[1733733674287,0.5199605,229.49,229.36,0.47799068]
[1733733674658,0.5199605,229.49,229.37,20.0889144]
[1733733674905,0.5199605,229.49,229.4,20.0889144]
[1733733675105,0.5199605,229.49,229.41,0.47764586]
[1733733675598,0.5199605,229.49,229.42,20.0889144]
[1733733675773,0.5199605,229.49,229.43,0.47747986]
[1733733677675,0.5199605,229.49,229.35,20.47806163]
[1733733678001,0.5199605,229.49,229.35,40.56697603]
[1733733678172,0.5199605,229.49,229.35,20.47806163]
[1733733678368,0.5199605,229.49,229.35,40.56697603]
[1733733678572,0.5199605,229.49,229.35,20.56697603]
[1733733678793,0.5199605,229.49,229.4,23.776884]
[1733733679097,0.5199605,229.49,229.41,0.47770188]
[1733733679809,0.4792135,229.49,229.41,0.47770188]
[1733733680285,0.4792135,229.49,229.42,0.47779597]
[1733733681167,0.4792135,229.49,229.43,0.47762908]
[1733733682287,0.4792135,229.49,229.44,0.47773904]
[1733733683370,0.4792135,229.49,229.45,0.47763159]
[1733733685174,0.4792135,229.49,229.4,23.776884]
[1733733685175,0.4792135,229.49,229.46,0.47747176]
[1733733685375,0.4792135,229.49,229.4,23.776884]
[1733733685376,0.4792135,229.49,229.41,0.47771529]
[1733733686470,0.4792135,229.49,229.42,0.4778319]
[1733733687207,23.776884,229.56,229.37,0.47783256]
[1733733687384,23.776884,229.54,229.37,0.47783256]
[1733733687595,23.776884,229.52,229.37,0.47783256]
[1733733687820,23.776884,229.5,229.37,0.47783256]
[1733733688017,8.0335,229.51,229.37,0.47783256]
[1733733688315,8.0335,229.51,229.33,21.3389144]
[1733733688316,23.776884,229.5,229.38,0.47808334]
[1733733688499,8.0335,229.51,229.38,0.47808334]
[1733733689228,20.0,229.48,229.38,0.47808334]
[1733733689402,20.0,229.48,229.34,24.2550359]
[1733733689718,20.0,229.44,229.34,0.4781519]
[1733733691189,20.0,229.4,229.34,0.4781519]
[1733733691495,20.0,229.4,229.33,1.25]
[1733733692588,25.410384,229.39,229.33,1.25]
[1733733692813,20.0,229.36,229.33,1.25]
[1733733695731,1.6335,229.39,229.33,1.25]
[1733733696127,0.81728694,229.48,229.34,0.47859529]
[1733733696305,1.6034,229.47,229.34,0.47859529]
[1733733697205,1.6034,229.47,229.36,20.0889144]
[1733733697415,1.6034,229.53,229.38,20.0889144]
[1733733697742,1.6034,229.53,229.39,0.47792198]
[1733733698302,1.6034,229.53,229.41,20.0889144]
[1733733698607,1.6034,229.53,229.42,0.47763801]
[1733733699318,0.8168083,229.61,229.43,20.0889144]
[1733733699541,2.542124,229.61,229.44,0.47752162]
[1733733699739,0.8168083,229.61,229.44,0.47752162]
[1733733700740,20.0,229.56,229.44,0.47752162]
[1733733704034,2.35439674,229.62,229.44,44.34332002]
[1733733704238,0.81664657,229.61,229.44,44.34332002]
[1733733704454,1.5376,229.62,229.45,20.0889144]
[1733733704759,1.5376,229.62,229.46,24.25412634]
[1733733705832,20.0,229.6,229.46,24.25412634]
[1733733706042,20.0,229.6,229.46,20.56615674]
[1733733706538,20.0,229.6,229.46,0.47724234]
[1733733707555,20.0,229.6,229.48,6.5562]
[1733733707759,20.0,229.66,229.49,0.47703037]
[1733733708059,20.0,229.66,229.49,24.25391437]
[1733733708225,4.08672087,229.68,229.49,24.25391437]
[1733733709155,2.34340448,229.68,229.49,24.25391437]
[1733733709356,1.5269,229.68,229.5,20.0889144]
[1733733709565,1.5269,229.68,229.51,24.25370966]
[1733733710057,1.5269,229.68,229.51,0.47682566]
[1733733710445,23.776884,229.67,229.52,0.47694715]
[1733733710750,20.0,229.64,229.52,0.47694715]
[1733733711644,20.0,229.64,229.53,0.47689768]
[1733733712531,20.0,229.64,229.54,0.47690998]
[1733733712955,20.0,229.64,229.5,0.47709761]
[1733733712956,23.776884,229.63,229.5,0.47709761]
[1733733713164,20.0,229.6,229.5,0.47709761]
[1733733713639,20.0,229.56,229.5,0.47709761]
[1733733713834,20.0,229.56,229.49,0.47751059]
[1733733714336,20.0,229.52,229.42,6.6502]
[1733733714632,20.0,229.48,229.31,6.6502]
[1733733714860,20.0,229.48,229.35,20.0889144]
[1733733715168,20.0,229.52,229.38,20.0889144]
[1733733715336,20.0,229.52,229.39,0.47770698]
[1733733715744,1.6397,229.56,229.39,0.47770698]
[1733733715745,20.0,229.54,229.39,0.47770698]
[1733733717032,0.81684423,229.62,229.39,0.47770698]
[1733733717033,20.0,229.61,229.42,43.8657984]
[1733733717255,20.0,229.61,229.43,0.47741806]
[1733733717839,20.81672765,229.61,229.43,0.47741806]
[1733733718360,20.0,229.57,229.43,0.47741806]
[1733733719242,23.776884,229.56,229.43,0.47741806]
[1733733719442,20.0,229.53,229.43,0.47741806]
[1733733719966,20.0,229.6,229.43,0.47741806]
[1733733720160,23.776884,229.54,229.43,0.47741806]
[1733733720362,20.0,229.51,229.43,0.47741806]
[1733733722080,23.776884,229.5,229.43,0.47741806]
[1733733722361,23.776884,229.5,229.41,0.47795896]
[1733733723367,20.0,229.47,229.41,0.47795896]
[1733733724269,23.776884,229.46,229.37,0.47811949]
[1733733724578,23.776884,229.42,229.37,0.47811949]
[1733733724735,23.776884,229.42,229.36,0.47852685]
[1733733725536,23.776884,229.38,229.31,0.47859265]
[1733733725737,20.0,229.39,229.3,7.7499]
[1733733725738,20.0,229.39,229.33,1.72859265]
[1733733726138,0.8172742,229.5,229.33,1.72859265]
[1733733726139,43.776884,229.44,229.33,1.72859265]
[1733733726739,20.0,229.39,229.33,1.25]
[1733733726946,23.776884,229.38,229.33,1.25]
[1733733728263,20.0,229.48,229.34,0.47886337]
[1733733728449,0.81720126,229.47,229.34,0.47886337]
[1733733728656,20.81720126,229.47,229.34,0.47886337]
[1733733728855,0.81720126,229.47,229.34,0.47886337]
[1733733729057,0.81723865,229.49,229.34,0.47886337]
[1733733730350,43.776884,229.48,229.34,0.47886337]
[1733733730548,20.0,229.43,229.34,0.47886337]
[1733733730775,23.776884,229.42,229.34,0.47886337]
[1733733732276,20.0,229.39,229.34,0.47886337]
[1733733733758,20.0,229.39,229.33,1.25]
[1733733734081,20.0,229.35,229.33,1.25]
[1733733736292,20.0,229.45,229.33,1.25]
[1733733736474,20.81734094,229.44,229.34,0.4787033]
[1733733736771,20.0,229.4,229.34,0.4787033]
[1733733738051,8.1956,229.51,229.36,20.0889144]
[1733733738268,1.6582,229.51,229.37,20.56704832]
[1733733738465,3.41248708,229.51,229.37,20.56704832]
[1733733738781,1.6582,229.51,229.37,20.56704832]
[1733733739576,1.6582,229.51,229.37,0.47813392]
[1733733739782,23.776884,229.49,229.36,0.47819396]
[1733733740071,23.776884,229.47,229.36,0.47819396]
[1733733740274,20.0,229.42,229.33,1.72855428]
[1733733740448,23.776884,229.41,229.33,1.72855428]
[1733733740648,20.0,229.38,229.33,1.72855428]
[1733733741252,20.0,229.38,229.34,0.47868344]
[1733733741448,23.776884,229.45,229.34,0.47868344]
[1733733741648,23.776884,229.41,229.34,0.47868344]
[1733733742858,20.0,229.38,229.33,1.25]
[1733733744058,1.72188621,229.44,229.33,1.25]
[1733733744264,0.81734103,229.43,229.33,1.25]
[1733733744673,20.0,229.39,229.33,1.25]
[1733733745304,0.81748082,229.38,229.33,1.25]
[1733733746896,20.0,229.34,229.33,1.25]
[1733733747183,20.0,229.34,229.24,0.47931977]
[1733733747354,0.81770518,229.33,229.2,0.47943177]
[1733733749265,20.0,229.34,229.2,0.47943177]
[1733733749763,1.6028,229.39,229.2,0.47943177]
[1733733749764,1.6028,229.39,229.23,12.55940041]
[1733733749974,3.37963604,229.39,229.24,0.47907883]
[1733733750278,0.81753655,229.38,229.24,0.47907883]
[1733733750476,1.6028,229.39,229.24,24.25596283]
[1733733750767,1.6028,229.39,229.24,36.81536324]
[1733733751173,1.6028,229.39,229.24,24.25596283]
[1733733751391,0.81754513,229.38,229.24,0.47907883]
[1733733751695,23.776884,229.37,229.2,24.25622957]
[1733733751885,0.81765293,229.36,229.2,0.47934557]
[1733733752067,20.0,229.34,229.2,0.47934557]
[1733733752383,0.81770414,229.33,229.2,0.47934557]
[1733733752589,20.0,229.34,229.2,0.47934557]
[1733733752770,0.817678,229.33,229.2,0.47934557]
[1733733754504,20.0,229.29,229.17,0.47956244]
[1733733754792,20.0,229.29,229.14,6.301]
[1733733754793,0.81793699,229.28,229.14,6.78056244]
[1733733755478,0.81793699,229.28,229.14,6.301]
[1733733755479,1.5696,229.27,229.14,6.301]
[1733733755679,20.0,229.23,229.09,6.017]
[1733733755997,0.81810594,229.22,229.1,0.4802333]
[1733733756577,20.0,229.23,229.1,0.4802333]
[1733733757108,20.81807112,229.23,229.1,0.4802333]
[1733733758596,20.81807112,229.23,229.06,13.03965863]
[1733733758827,20.81807112,229.23,229.07,12.55940041]
[1733733758984,20.81807112,229.23,229.08,0.48023634]
[1733733759875,20.81807112,229.23,229.08,13.03963675]
[1733733760386,20.0,229.23,229.1,12.55940041]
[1733733760575,20.0,229.23,229.11,13.03947486]
[1733733760890,20.0,229.23,229.11,36.81635886]
[1733733761103,1.5696,229.27,229.12,12.55940041]
[1733733761284,0.81792521,229.26,229.13,0.47987184]
[1733733761678,0.81792521,229.26,229.08,13.03944173]
[1733733761887,0.81792521,229.26,229.09,23.776884]
[1733733762087,0.81792521,229.26,229.1,0.48015251]
[1733733762714,20.0,229.22,229.1,0.48015251]
[1733733764312,0.81807057,229.21,229.1,0.48015251]
[1733733764583,0.81813658,229.21,229.11,0.48029458]
[1733733765105,0.81813658,229.21,229.08,0.48030893]
[1733733765286,20.0,229.17,229.07,0.48055129]
[1733733765491,20.0,229.17,229.04,12.55940041]
[1733733765718,20.0,229.25,229.09,12.55940041]
[1733733765885,24.59497961,229.24,229.1,0.48021263]
[1733733766083,20.0,229.21,229.1,0.48021263]
[1733733768988,0.81813253,229.2,229.1,0.48021263]
[1733733769200,0.81813253,229.2,229.08,0.48031698]
[1733733769793,21.73141378,229.21,229.08,0.48031698]
[1733733769993,21.73141378,229.21,229.09,12.55940041]
[1733733770200,1.5696,229.27,229.12,12.55940041]
[1733733770526,1.5696,229.27,229.15,12.55940041]
[1733733770685,1.76617901,229.3,229.18,12.55940041]
[1733733770892,7.7164,229.32,229.19,0.47953846]
[1733733771111,1.6121,229.37,229.22,12.55940041]
[1733733771292,0.81757726,229.36,229.24,12.55940041]
[1733733771499,2.42967357,229.37,229.25,0.47916855]
[1733733771699,4.16622454,229.37,229.25,0.47916855]
[1733733772105,2.42967357,229.37,229.25,0.47916855]
[1733733772713,20.0,229.36,229.25,0.47916855]
[1733733773707,0.81759618,229.35,229.23,0.47921377]
[1733733774000,0.81768567,229.34,229.23,0.47921377]
[1733733774192,20.8176756,229.36,229.23,0.47921377]
[1733733774394,20.8176756,229.36,229.23,13.03861418]
[1733733774918,20.8176756,229.36,229.23,0.47921377]
[1733733775125,20.0,229.36,229.23,0.47921377]
[1733733775519,0.81758011,229.35,229.23,0.47921377]
[1733733775691,0.81769073,229.34,229.22,0.47940288]
[1733733776419,0.81764873,229.35,229.22,13.03880329]
[1733733776919,0.81761232,229.34,229.22,0.47940288]
[1733733777227,0.81761232,229.34,229.23,0.47938267]
[1733733777516,0.81769662,229.35,229.23,0.47938267]
[1733733777819,0.81767926,229.34,229.23,0.47938267]
[1733733778134,0.81772159,229.33,229.2,0.47946458]
[1733733778990,20.0,229.31,229.15,0.47945334]
[1733733779301,23.776884,229.34,229.15,0.47945334]
[1733733779302,20.0,229.27,229.15,0.47945334]
[1733733779624,1.6368,229.26,229.15,0.47945334]
[1733733779834,2.45471789,229.26,229.15,0.47945334]
[1733733780202,1.6368,229.26,229.15,0.47945334]
[1733733783599,1.6368,229.26,229.08,70.0]
[1733733783600,2.45468634,229.26,229.09,0.47979409]
[1733733783805,20.0,229.22,229.09,0.47979409]
[1733733784614,0.81808777,229.21,229.09,0.47979409]
[1733733784816,0.81808777,229.21,229.07,0.48031981]
[1733733785218,20.0,229.17,229.03,0.48046523]
[1733733785519,20.0,229.17,229.03,13.03986564]
[1733733785715,20.0,229.22,229.03,0.48046523]
[1733733785944,24.59512526,229.21,229.03,0.48046523]
[1733733786219,20.0,229.18,229.03,0.48046523]
[1733733786733,1.5274,229.17,229.03,0.48046523]
[1733733786914,20.0,229.13,229.02,0.48071155]
[1733733787116,20.0,229.13,228.98,12.55940041]
[1733733787422,20.0,229.13,228.99,0.4807364]
[1733733789044,20.0,229.13,228.99,36.81702081]
[1733733789240,20.0,229.13,228.99,24.2576204]
[1733733789409,20.0,229.13,229.04,12.55940041]
[1733733789739,20.0,229.13,229.05,0.48052738]
[1733733790433,20.0,229.13,229.05,36.81681179]
[1733733790646,6.0111,229.16,229.06,12.55940041]
[1733733790940,6.0111,229.16,229.07,0.48042332]
[1733733791531,0.81821752,229.15,229.02,12.55940041]
[1733733791836,0.81821752,229.15,229.03,0.4806841]
[1733733792047,20.0,229.13,229.03,0.4806841]
[1733733792343,0.81840925,229.12,229.0,0.48083992]
[1733733793247,0.81840925,229.12,228.95,6.5504]
[1733733793248,0.81840925,229.12,229.01,0.48101117]
[1733733793949,0.81840925,229.12,228.98,12.55940041]
[1733733793950,0.81840925,229.12,228.96,0.4809407]
[1733733794124,1.6334,229.07,228.96,0.4809407]
[1733733794315,0.81867893,229.06,228.96,0.4809407]
[1733733794515,0.81867893,229.06,228.93,0.48142259]
[1733733794732,0.81867893,229.06,228.92,0.5199605]
[1733733794733,6.2698,229.05,228.92,0.5199605]
[1733733794933,20.0,229.02,228.92,0.5199605]
[1733733795452,20.0,229.02,228.93,0.4815427]
[1733733795610,20.0,229.02,228.93,13.04094311]
[1733733795812,1.6334,229.07,228.99,12.55940041]
[1733733796053,1.6334,229.07,229.0,13.04034345]
[1733733796640,6.3843,229.1,229.01,12.55940041]
[1733733796816,6.3843,229.1,229.02,0.48086969]
[1733733797638,6.3843,229.1,228.92,0.5199605]
[1733733797639,20.0,229.07,228.92,1.00081391]
[1733733797846,20.0,229.07,228.97,12.55940041]
[1733733798141,20.0,229.07,228.98,0.48102137]
[1733733799145,20.0,229.07,228.99,0.48114857]
[1733733799344,20.0,229.07,228.92,0.5199605]
[1733733799345,0.81862364,229.06,228.97,0.48114841]
[1733733799518,0.81862364,229.06,228.94,0.48126869]
[1733733800553,0.81862364,229.06,228.95,0.48144523]
[1733733801332,20.0,229.07,228.96,20.15967857]
[1733733801549,20.0,229.07,228.96,0.48144164]
[1733733801730,20.0,229.07,228.96,20.64112021]
[1733733801927,20.0,229.07,228.96,0.48144164]
[1733733802452,20.0,229.07,228.97,0.48119251]
[1733733803965,6.3843,229.1,229.0,20.15967857]
[1733733804126,6.3843,229.1,229.01,20.64052418]
[1733733804335,6.3843,229.1,229.02,20.15967857]
[1733733804650,6.6649,229.16,229.07,43.93656257]
[1733733804826,6.6649,229.16,229.08,0.48032096]
[1733733807466,1.6864,229.18,229.09,20.15967857]
[1733733807664,1.6864,229.18,229.1,20.63978344]
[1733733808167,1.6864,229.18,229.1,0.48010487]
[1733733808363,21.6864,229.18,229.1,0.48010487]
[1733733808663,21.6864,229.18,229.07,20.15967857]
[1733733808664,21.6864,229.18,229.11,0.48025623]
[1733733809651,21.6864,229.18,229.12,0.48016403]
[1733733809859,21.6864,229.18,229.1,0.48016473]
[1733733810072,21.6864,229.18,229.08,0.48038295]
[1733733810745,21.6864,229.18,229.09,20.15967857]
[1733733810945,1.6864,229.18,229.11,20.15967857]
[1733733811163,1.6864,229.18,229.12,0.48014924]
[1733733818388,1.6585,229.24,229.12,20.63982781]
[1733733818680,1.6585,229.24,229.13,20.15967857]
[1733733818844,1.6585,229.24,229.15,20.15967857]
[1733733819046,1.6585,229.24,229.16,20.63941503]
[1733733819253,1.6585,229.24,229.18,23.776884]
[1733733819452,6.5866,229.27,229.19,0.47941225]
[1733733821065,1.6585,229.29,229.19,0.47941225]
[1733733821446,1.6585,229.29,229.19,24.25629625]
[1733733821758,1.6585,229.29,229.19,0.47941225]
[1733733822677,0.81774426,229.28,229.14,0.47950992]
[1733733823150,0.81774426,229.28,229.11,0.48006764]
[1733733823356,6.413,229.26,229.11,0.48006764]
[1733733823684,20.0,229.22,229.08,0.48007867]
[1733733823887,0.81813559,229.21,229.08,0.48007867]
[1733733824056,1.5795,229.2,229.08,0.48007867]
[1733733824452,1.5795,229.2,229.09,0.4803603]
[1733733824771,1.5795,229.2,229.11,23.776884]
[1733733824964,1.5795,229.2,229.1,0.48002677]
[1733733825349,1.5795,229.2,229.06,0.48035063]
[1733733825555,20.0,229.16,229.06,0.48035063]
[1733733826351,20.0,229.16,229.04,0.48058309]
[1733733827462,20.0,229.16,229.05,0.48059183]
[1733733827980,1.5795,229.2,229.05,13.05214221]
[1733733828187,0.81824564,229.19,229.05,24.25747583]
[1733733829686,1.5795,229.2,229.09,12.57155038]
[1733733829983,1.5795,229.2,229.1,0.48017808]
[1733733832663,1.5795,229.2,229.11,12.57155038]
[1733733832891,1.5795,229.2,229.06,70.0]
[1733733832892,1.5795,229.2,229.12,36.82841551]
[1733733834166,1.6053,229.25,229.15,12.57155038]
[1733733834376,1.6053,229.25,229.16,24.25655083]
[1733733834791,1.6053,229.25,229.16,36.82810121]
[1733733835096,1.6053,229.25,229.16,24.25655083]
[1733733835602,1.6053,229.25,229.16,36.82810121]
[1733733835974,1.6053,229.25,229.17,12.57155038]
[1733733836181,1.6053,229.25,229.18,24.25641452]
[1733733837496,20.0,229.23,229.18,0.47953052]
[1733733837735,1.6053,229.25,229.17,23.776884]
[1733733837884,1.6821,229.31,229.24,36.34843438]
[1733733838083,1.6821,229.31,229.27,23.776884]
[1733733838291,1.6821,229.31,229.28,0.47905005]
[1733733839711,1.6821,229.31,229.27,23.776884]
[1733733840314,1.6821,229.31,229.22,0.47915694]
[1733733840467,1.6821,229.31,229.16,20.0]
[1733733840671,1.6821,229.31,229.17,20.47960407]
[1733733840903,1.6821,229.31,229.17,20.0]
[1733733841272,0.81779039,229.3,229.17,0.4796022]
[1733733841709,0.81779039,229.3,229.13,18.62385038]
[1733733841997,0.81779039,229.3,229.14,0.47965751]
[1733733842200,0.81779039,229.3,229.15,0.47968326]
[1733733842397,0.81779039,229.3,229.16,0.47968738]
[1733733842589,1.6821,229.31,229.18,12.57155038]
[1733733842904,1.6821,229.31,229.21,12.57155038]
[1733733843098,1.6821,229.31,229.22,0.47928115]
[1733733843574,1.6821,229.31,229.22,24.25616515]
[1733733843908,6.3703,229.37,229.3,12.57155038]
[1733733844078,6.3703,229.37,229.23,70.0]
[1733733844079,6.3703,229.37,229.31,24.25556832]
[1733733844912,1.6734,229.38,229.31,13.0502347]
[1733733845080,6.4478,229.42,229.33,36.34843438]
[1733733845308,1.5306,229.44,229.38,23.776884]
[1733733845615,6.3063,229.48,229.39,0.47817442]
[1733733846401,6.3063,229.48,229.4,23.776884]
[1733733846599,6.3063,229.48,229.41,0.47796966]
[1733733846816,1.5306,229.49,229.41,0.47796966]
[1733733848116,0.81710683,229.48,229.33,0.47823507]
[1733733848734,20.0,229.44,229.29,0.47870756]
[1733733848958,0.81744803,229.43,229.29,0.47870756]
[1733733849227,0.81744803,229.43,229.26,0.47885679]
[1733733849922,20.0,229.38,229.2,0.47908991]
[1733733850096,0.81763346,229.37,229.2,0.47908991]
[1733733850410,20.0,229.33,229.15,20.08664636]
[1733733850617,20.81784387,229.32,229.16,0.47970916]
[1733733850804,23.776884,229.3,229.12,0.47985302]
[1733733851013,20.0,229.27,229.12,0.47985302]
[1733733851208,0.81798704,229.26,229.12,0.47985302]
[1733733852735,0.81798704,229.26,229.09,0.48019376]
[1733733853243,20.0,229.18,229.09,0.48019376]
[1733733853611,20.0,229.18,229.06,0.48038534]
[1733733854247,20.0,229.18,229.07,20.08664636]
[1733733854436,20.0,229.18,229.08,0.48038595]
[1733733854632,0.81818227,229.17,229.05,0.48052671]
[1733733855243,1.5551,229.16,229.05,0.48052671]
[1733733855840,1.5551,229.16,229.03,20.08664636]
[1733733855841,1.5551,229.16,229.06,0.48070721]
[1733733856027,0.81827246,229.15,229.0,20.56721269]
[1733733856413,2.37345877,229.16,229.01,20.08664636]
[1733733856628,2.37345877,229.16,229.02,0.48065199]
[1733733857427,2.37345877,229.16,229.05,20.08664636]
[1733733857428,1.5551,229.16,229.05,20.08664636]
[1733733857632,0.81822739,229.15,229.02,0.4804762]
[1733733857948,43.776884,229.14,228.96,0.48089861]
[1733733858149,0.81854312,229.13,228.96,0.48089861]
[1733733858745,0.81854312,229.13,228.96,20.56754497]
[1733733858924,0.81854312,229.13,228.97,20.56792119]
[1733733859319,23.776884,229.12,228.97,0.48127483]
[1733733859515,20.0,229.09,228.97,0.48127483]
[1733733859852,20.0,229.09,228.98,0.48120983]
[1733733860141,20.0,229.14,228.99,20.08664636]
[1733733860349,0.81844894,229.13,229.0,0.48091929]
[1733733860666,1.5551,229.16,229.04,20.08664636]
[1733733860947,1.5551,229.16,229.05,0.4806013]
[1733733861927,0.8183431,229.15,229.02,0.48070762]
[1733733862120,0.8183431,229.15,229.02,20.56735398]
[1733733862317,0.81832201,229.15,229.03,23.776884]
[1733733862522,0.81832201,229.15,229.04,0.48073046]
[1733733862744,0.81832201,229.15,229.02,0.4808141]
[1733733863331,0.81832201,229.15,229.02,20.56746046]
[1733733863723,0.81832201,229.15,229.03,20.08664636]
[1733733863922,2.37343648,229.16,229.04,0.4806178]
[1733733864921,1.5551,229.16,229.04,0.4806178]
[1733733865348,0.81828714,229.15,229.04,0.4806178]
[1733733866957,23.776884,229.14,228.96,20.08664636]
[1733733867255,20.0,229.07,228.97,0.48111315]
[1733733867622,20.0,229.07,228.97,20.56775951]
[1733733868227,20.0,229.07,228.99,20.08664636]
[1733733868554,20.0,229.07,229.0,20.56760341]
[1733733868734,20.0,229.07,229.0,0.48095705]
[1733733870052,6.6376,229.1,229.0,20.56760341]
[1733733870365,6.6376,229.1,229.04,20.08664636]
[1733733870527,6.6376,229.1,229.03,20.08664636]
[1733733870733,6.6376,229.1,229.04,20.56736267]
[1733733870949,6.6376,229.1,229.04,0.48071631]
[1733733871155,6.6376,229.1,229.04,20.56736267]
[1733733871850,6.6376,229.1,229.04,24.25760031]
[1733733872059,6.6376,229.1,229.01,23.776884]
[1733733872226,6.6376,229.1,228.99,24.25786796]
[1733733872427,6.6376,229.1,228.99,0.48098396]
[1733733872828,0.81852403,229.09,228.99,0.48098396]
[1733733873029,6.6376,229.1,228.99,0.48098396]
[1733733873422,6.6376,229.1,228.99,20.56763032]
[1733733873958,6.6376,229.1,229.03,20.08664636]
[1733733874164,6.6376,229.1,229.04,0.48073984]
[1733733875169,6.6376,229.1,228.98,20.08664636]
[1733733875372,20.0,229.07,228.97,24.25770748]
[1733733875869,20.0,229.07,228.97,0.48082348]
[1733733876029,2.38948259,229.06,228.92,21.08779345]
[1733733876499,2.38948259,229.06,228.92,1.00114709]
[1733733877134,2.38948259,229.06,228.92,0.5199605]
[1733733877752,23.776884,229.05,228.92,0.5199605]
[1733733877959,20.0,229.02,228.92,0.5199605]
[1733733878133,0.81887568,229.01,228.92,0.5199605]
[1733733882352,20.0,228.97,228.92,0.5199605]
[1733733883090,6.5169,229.0,228.92,1.00168073]
[1733733884363,6.5169,229.0,228.92,21.08832709]
[1733733885591,6.5169,229.0,228.92,1.00168073]